Cogmind - Beta 14 @@@ ROGUE MODE // 2024.09.15 @ 16:17:57 Player: SunnyVampire Result: Destroyed by D-53 Grenadier with Mini Grenade Launcher Performance ------------- Evolutions (1) 500 Regions Visited (4) 800 Robots Destroyed (46) 230 Value Destroyed (911) 911 Prototype IDs (1) 20 Alien Tech Used (0) 0 Bonus (110) 110 TOTAL SCORE: 2571 Bonus ------- Follower Combat Kills 110 Cogmind --------- Core Integrity 0/400 Matter 57/300 Energy 27/100 System Corruption 1% Temperature Cool (0) Movement Flying (197) Ox2 Location -9/Mines Parts ------- > --- POWER (1) -------- (None) > --- PROPULSION (4) --- Flight Unit Flight Unit > --- UTILITY (2) ------ Large Storage Unit Improved Targeting Computer > --- WEAPON (2) ------- Improved Assault Rifle > --- INVENTORY (15) --- Improved Ion Engine Medium Matter Pod (0) Visual Processing Unit Signal Interpreter Terrain Scanner Improved Targeting Computer Reactive Plating Hacking Suite Peak State ------------ > --- POWER ------------ Light Nuclear Core > --- PROPULSION ------- Light Treads Light Treads Improved Treads Improved Treads > --- UTILITY ---------- Large Storage Unit Improved Targeting Computer > --- WEAPON ----------- Light Assault Rifle Heavy Assault Rifle > --- INVENTORY -------- Improved Ion Engine Flight Unit Flight Unit Flight Unit Flight Unit Large Storage Unit Terrain Scanner Improved Targeting Computer Improved Targeting Computer Medium Armor Plating Medium Armor Plating Hacking Suite Light Assault Rifle Rocket Launcher [Rating: 17] Favorites ----------- Power Improved Ion Engine Engine Improved Ion Engine Power Core Light Nuclear Core Propulsion Light Treads Treads Light Treads Flight Unit Flight Unit Utility Improved Targeting Computer Storage Large Storage Unit Processor Improved Targeting Computer Weapon Heavy Assault Rifle Energy Gun EM Pulse Gun Ballistic Gun Heavy Assault Rifle Launcher Missile Launcher Build | -11 -10 -10 -9 -9 ------- Run | Yrd Mat Min Mat Min Slots Evolved 2 | . . . 2 . Power . | . . . . . Propulsion 2 | . . . 2 . Utility . | . . . . . Weapon . | . . . . . Parts Attached 36 | 6 7 4 12 7 Power 4 | 1 1 . 2 . Engine 3 | 1 1 . 1 . Core 1 | . . . 1 . Reactor . | . . . . . Propulsion 14 | 2 2 . 6 4 Treads 9 | 2 2 . 5 . Leg . | . . . . . Wheel . | . . . . . Hover . | . . . . . Flight 5 | . . . 1 4 Utility 5 | 1 3 . 1 . Device . | . . . . . Storage 3 | 1 1 . 1 . Processor 2 | . 2 . . . Hackware . | . . . . . Protection . | . . . . . Artifact . | . . . . . Weapon 13 | 2 1 4 3 3 Energy Gun 1 | 1 . . . . Energy Cannon . | . . . . . Ballistic Gun 8 | 1 1 2 3 1 Ballistic Cannon . | . . . . . Launcher 4 | . . 2 . 2 Special Weapon . | . . . . . Impact Weapon . | . . . . . Slashing Weapon . | . . . . . Piercing Weapon . | . . . . . Special Melee Weapon . | . . . . . Unidentified Prototypes 1 | . . . . 1 Parts Lost 17 | . 1 . 5 11 Power 2 | . . . 1 1 Propulsion 9 | . . . 3 6 Utility . | . . . . . Weapon 6 | . 1 . 1 4 Highest Loss Streak 11 | . 1 . 2 11 To Critical Strikes . | . . . . . Average Slot Usage (%) 98 | . 98 100 99 79 Engine 9 | . 14 14 4 4 Core 3 | . . . 6 . Treads 35 | . 28 28 43 34 Storage 12 | . 14 14 11 11 Processor 12 | . 12 14 11 11 Energy Gun 2 | . 12 . . . Ballistic Gun 21 | . 15 27 21 13 Peak Build Rating 17 | 6 13 14 17 15 Average Rating 13 | 5 10 13 15 12 On Entrance 9 | . 6 13 13 15 Naked Turns . | . . . . . Heaviest Build 34 | 13 31 34 33 33 Greatest Support 86 | 40 46 46 86 80 Greatest Overweight (x) 1 | 1 . . . 1 Average Overweight (x) . | . . . . . Largest Inventory Capacity 15 | 8 15 15 15 15 Average Capacity 13 | 7 11 15 15 15 Most Carried 15 | 4 12 13 15 15 Average Carried 12 | 2 7 12 14 14 Final Capacity 15 | 8 15 15 15 15 Final Carried 15 | 4 12 13 15 8 Class Distribution -------------------- 91% | Mutant 8% | Scavenger-Mutant Dominant Class ---------------- Mutant | -10/Materials Mutant | -10/Mines Mutant | -9/Materials Mutant | -9/Mines Resources | -11 -10 -10 -9 -9 ----------- Run | Yrd Mat Min Mat Min Matter Collected 829 | 213 151 162 303 . Remotely . | . . . . . Salvage Created 1335 | 24 276 163 763 109 Parts 109 | 2 21 26 58 2 Haulers Intercepted 3 | . . . 3 . Recyclers Shooed 1 | . 1 . . . Parts Field Recycled . | . . . . . Retrieved Matter . | . . . . . Parts Self-Destructed . | . . . . . Prevented . | . . . . . Kills | -11 -10 -10 -9 -9 ------- Run | Yrd Mat Min Mat Min Combat Hostiles Destroyed 48 | . 8 11 14 15 Guns 29 | . 8 5 14 2 AOE 19 | . . 6 . 13 Classes Destroyed 10 | 1 5 . 3 1 Worker 2 | . 1 1 . . Tunneler 2 | 1 . 1 . . Hauler 3 | . . . 3 . Recycler 2 | . . . 1 1 Operator 2 | . 1 . 1 . Watcher 2 | . 1 . 1 . Swarmer 17 | . 5 9 3 . Grunt 13 | . 3 2 8 . Sentry 3 | . . . 3 . Assembled 15 | . . . . 15 Best Kill Streak 16 | 1 3 4 5 16 Combat Bots Only 15 | . 3 3 3 15 Max Kills in Single Turn 4 | 1 1 2 1 4 Gunslinging . | . . . . . Exploded 4 | . . 2 . 4 Melee . | . . . . . Uniques/NPCs Destroyed . | . . . . . Combat | -11 -10 -10 -9 -9 -------- Run | Yrd Mat Min Mat Min Hostile Shots Fired 208 | . 49 36 76 47 Missed 56 | . 15 15 21 5 Damage Taken 2663 | . 298 279 780 1306 Core 552 | . 79 52 74 347 Absorbed by Shields . | . . . . . Core Remaining (%) 73 | 100 . 47 . . Volleys Fired 108 | 1 27 18 46 16 Largest 2 | 2 2 2 2 2 Hottest 72 | 60 60 56 46 72 Shots Fired 212 | 2 54 36 92 28 Gun 193 | 2 54 30 92 15 Cannon . | . . . . . Launcher 19 | . . 6 . 13 Special . | . . . . . Kinetic 167 | 1 29 30 92 15 Thermal . | . . . . . Explosive 19 | . . 6 . 13 Electromagnetic 26 | 1 25 . . . Robot Hit Streak 18 | 1 7 9 18 6 Robot Miss Streak 5 | 1 4 5 2 1 Penetration Max . | . . . . . Secondary Targets 1 | . . . 1 . Max Gunslinging Chain 1 | . . . 1 . Shots Hit Robots 132 | 1 28 22 66 15 Core Hits 95 | 1 13 15 32 34 Critical Kills . | . . . . . Critical Parts Destroyed . | . . . . . Critical Strikes . | . . . . . Melee Attacks . | . . . . . Impact . | . . . . . Slashing . | . . . . . Piercing . | . . . . . Sneak Attacks . | . . . . . Combat Hostiles . | . . . . . Follow-up Attacks . | . . . . . Damage Inflicted 2906 | 15 348 673 858 1012 Guns 1603 | 15 338 239 857 154 Cannons . | . . . . . Explosions 1248 | . . 390 . 858 Melee . | . . . . . Ramming 55 | . 10 44 1 . Kinetic 1366 | . 116 239 857 154 Thermal . | . . . . . Explosive 1248 | . . 390 . 858 Electromagnetic 237 | 15 222 . . . Impact . | . . . . . Slashing . | . . . . . Piercing . | . . . . . Highest Corruption 1 | . . . 1 1 Average Corruption 1 | . . . 1 1 Corruption Purged . | . . . . . Corruption Blocked . | . . . . . Overload Shots . | . . . . . Overflow Damage 145 | . . 93 . 52 Projectiles . | . . . . . Explosions 145 | . . 93 . 52 Melee . | . . . . . Knockbacks . | . . . . . Impact . | . . . . . Kinetic . | . . . . . Secondary . | . . . . . Self-Inflicted Damage 373 | . . 51 196 126 Shots 8 | . . 2 3 3 Rammed 8 | . 2 5 1 . Targets Rammed 9 | . 2 6 1 . Kicked . | . . . . . Crushed 1 | . . 1 . . Highest Temperature 62 | 20 62 44 9 . Average Temperature 18 | 15 21 12 6 . Received Heat Transfer 309 | . 54 96 159 . Siege Activations . | . . . . . Robots Corrupted . | . . . . . Combat Hostiles . | . . . . . Parts Fried 3 | . 3 . . . Impact Corruptions . | . . . . . Robots Melted . | . . . . . Combat Hostiles . | . . . . . Parts Melted . | . . . . . Heat Transferred . | . . . . . Parts Sabotaged . | . . . . . Parts Stolen . | . . . . . Parts Stripped . | . . . . . Power Chain Reactions . | . . . . . Alert | -11 -10 -10 -9 -9 ------- Run | Yrd Mat Min Mat Min Peak Influence 289 | 5 140 200 289 127 Initial 112 | . 3 . 31 112 Average 59 | 3 68 47 65 109 Maximum Alert Level 1 | . . 1 1 . Low Security (%) 97 | 100 100 95 96 100 Level 1 2 | . . 4 3 . Level 2 . | . . . . . Level 3 . | . . . . . Level 4 . | . . . . . Level 5 . | . . . . . High Security . | . . . . . Max Security . | . . . . . Squads Dispatched 7 | . 1 . 6 . Investigation 5 | . . . 5 . Extermination . | . . . . . Reinforcement 2 | . 1 . 1 . Assault . | . . . . . Garrison . | . . . . . Intercept . | . . . . . Searches Triggered . | . . . . . Construction Impeded . | . . . . . Haulers Reinforced . | . . . . . Active Scanning Responses . | . . . . . Cargo Convoy Interrupts . | . . . . . Stealth | -11 -10 -10 -9 -9 --------- Run | Yrd Mat Min Mat Min Distress Signals 2 | . . . 1 1 Communications Jammed . | . . . . . Distress Signals . | . . . . . Times Spotted 78 | . 15 13 28 22 Peak Tracking Total 16 | . 3 3 4 16 Tactical Retreats 7 | . 3 . 3 1 Traps | -11 -10 -10 -9 -9 ------- Run | Yrd Mat Min Mat Min Traps Triggered 1 | . . . 1 . Indirectly . | . . . . . Trap Hack Attempts . | . . . . . Triggered . | . . . . . Disarmed . | . . . . . Reprogrammed . | . . . . . Reused . | . . . . . Traps Extracted . | . . . . . Installed . | . . . . . Triggered . | . . . . . Machines | -11 -10 -10 -9 -9 ---------- Run | Yrd Mat Min Mat Min Machines Disabled 4 | . . . 4 . Max in Single Turn 2 | . . . 2 . Machines Repaired . | . . . . . Machines Dismantled . | . . . . . Machines Sabotaged . | . . . . . Overloaded Fab Kills . | . . . . . Hacking | -11 -10 -10 -9 -9 --------- Run | Yrd Mat Min Mat Min Machines Accessed 6 | . 1 . 5 . Terminals 5 | . 1 . 4 . Fabricators . | . . . . . Repair Stations . | . . . . . Recycling Units 1 | . . . 1 . Scanalyzers . | . . . . . Garrison Access . | . . . . . Total Hacks 19 | . 2 . 17 . Successful 4 | . 1 . 3 . Failed 15 | . 1 . 14 . Catastrophic 5 | . . . 5 . Database Lockouts . | . . . . . Manual 16 | . 2 . 14 . Terminals 16 | . 2 . 14 . Fabricators . | . . . . . Repair Stations . | . . . . . Recycling Units 3 | . . . 3 . Scanalyzers . | . . . . . Garrison Access . | . . . . . Terminal Hacks 2 | . 1 . 1 . Branch Access Points 2 | . 1 . 1 . Fabricator Hacks . | . . . . . Repair Station Hacks . | . . . . . Recycling Unit Hacks 2 | . . . 2 . Report Inventory 1 | . . . 1 . Retrieve Components 1 | . . . 1 . Scanalyzer . | . . . . . Garrison Access Hacks . | . . . . . Unauthorized Hacks . | . . . . . Terminals . | . . . . . Fabricators . | . . . . . Repair Stations . | . . . . . Recycling Units . | . . . . . Scanalyzers . | . . . . . Garrison Access . | . . . . . Data Cores Recovered . | . . . . . Used . | . . . . . Hacking Detections 5 | . . . 5 . Full Trace Events 4 | . . . 4 . Feedback Events 1 | . . . 1 . Corruption 1 | . . . 1 . Feedback Blocked . | . . . . . Robot Schematics Acquired . | . . . . . Robots Built . | . . . . . Authchips . | . . . . . Time . | . . . . . Total Robot Build Rating . | . . . . . Part Schematics Acquired . | . . . . . Parts Built . | . . . . . Authchips . | . . . . . Time . | . . . . . Total Part Build Rating . | . . . . . Parts Repaired . | . . . . . Time . | . . . . . Parts Recycled . | . . . . . Recycled Matter . | . . . . . Retrieved Matter . | . . . . . Retrieved Components 9 | . . . 9 . Parts Scanalyzed . | . . . . . Part Schematics Acquired . | . . . . . Parts Damaged . | . . . . . Bothacking | -11 -10 -10 -9 -9 ------------ Run | Yrd Mat Min Mat Min Used RIF Installer . | . . . . . Robots Hacked . | . . . . . Non-combat . | . . . . . Combat . | . . . . . Robot Hacks Applied . | . . . . . Relay Couplers Released . | . . . . . Fabnet Peak Effective % . | . . . . . Robots Rewired . | . . . . . Allies Hacked . | . . . . . Hacks Repelled . | . . . . . Allies | -11 -10 -10 -9 -9 -------- Run | Yrd Mat Min Mat Min Total Allies 3 | . . 3 . . Largest Group 3 | . . 3 3 . Highest-Rated Group 40 | . . 40 40 . Highest-Rated Ally 16 | . . 16 16 . Total Orders . | . . . . . Ally Attacks 25 | . . 5 20 . Total Damage 226 | . . 68 158 . Kills 4 | . . 2 2 . Allies Corrupted . | . . . . . Allies Melted . | . . . . . Intel | -11 -10 -10 -9 -9 ------- Run | Yrd Mat Min Mat Min Robot Analysis Total . | . . . . . Derelict Logs Recovered 2 | . . 2 . . Drone Launches . | . . . . . Drone Recoveries . | . . . . . Exploration | -11 -10 -10 -9 -9 ------------- Run | Yrd Mat Min Mat Min Turns Passed 4066 | 131 814 1129 1898 94 Spaces Moved 1793 | 77 398 652 649 17 Core 8 | 8 . . . . Treads 1785 | 69 398 652 649 17 Legs . | . . . . . Wheels . | . . . . . Hover . | . . . . . Flight . | . . . . . Fastest Speed 50 | 50 160 160 160 160 Average Speed 159 | 150 160 160 160 164 Slowest Speed 240 | 160 160 160 160 240 Overloaded Moves . | . . . . . Propulsion Burnouts . | . . . . . Robots Hopped . | . . . . . Cave-ins Triggered . | . . . . . Exploration Rate (%) 34 | 4 36 95 32 5 Regions Visited 4 Branch Regions 2 Pre-discovered Areas 2 | . . 2 . . Known Exits Taken 2 | . 1 . 1 . Unknown Exits Taken 2 | 1 . 1 . . Scrap Searched 1 | . . 1 . . Spaces Dug . | . . . . . Terrain Destroyed 221 | . . 57 73 91 Melee . | . . . . . Projectile . | . . . . . AOE 221 | . . 57 73 91 Terrain Rammed . | . . . . . Walls Destroyed . | . . . . . Machines Disabled . | . . . . . Actions | -11 -10 -10 -9 -9 --------- Run | Yrd Mat Min Mat Min Total 2790 | 87 526 699 1424 54 Wait 804 | . 76 19 695 14 Move 1789 | 76 397 651 648 17 Hop . | . . . . . Pick Up 29 | 4 11 1 13 . Fast Attach 11 | 6 1 . 4 . Attach 12 | . 1 . 4 7 Detach . | . . . . . Swap 13 | . 5 4 4 . Drop 15 | . 6 . 9 . Fire 108 | 1 27 18 46 16 Melee . | . . . . . Ram . | . . . . . Kick . | . . . . . Crush 9 | . 2 6 1 . Escape Stasis . | . . . . . Rewire . | . . . . . Trap . | . . . . . Miscellaneous . | . . . . . Route ------- -11/Scrapyard -10/Materials (discovered 3 exits: *Mat / *Min x2) -10/Mines (discovered 2 exits: *Mat x2) -9/Materials (discovered 4 exits: *Min x2 / *Sto x2) -9/Mines History --------- Turn | Location | Event 7 | -11/Scrapyard | Discovered new exit (range 16) 132 | -11/Scrapyard | Entered Materials 145 | -10/Materials | Identified exit to Mines 316 | -10/Materials | Build established: Mutant 759 | -10/Materials | Discovered new exit (range 16) 946 | -10/Materials | Entered Mines 1107 | -10/Mines | Received a Rocket Launcher from a helpful Derelict 1197 | -10/Mines | Learned location of Mines (-8) 1429 | -10/Mines | Core integrity fell below 50% 1550 | -10/Mines | Assisted by bots powering up and referring to "LRC-V3" 1693 | -10/Mines | Discovered new exit (range 6) 1738 | -10/Mines | Discovered new exit (range 9) 2075 | -10/Mines | Entered Materials 2075 | -9/Materials | Accompanied by 3 allies 2075 | -9/Materials | Evolved 2 slots: Propulsion x2 2858 | -9/Materials | Discovered new exit (range 16) 3609 | -9/Materials | Discovered new exit (range 14) 3923 | -9/Materials | Identified exit to Mines 3923 | -9/Materials | Identified exit to Storage 3966 | -9/Materials | Build established: Scavenger-Mutant 3973 | -9/Materials | Entered Mines 3974 | -9/Mines | Assembled infested the area 4058 | -9/Mines | Core integrity fell below 50% 4062 | -9/Mines | Core integrity fell below 20% 4067 | -9/Mines | Destroyed by D-53 Grenadier with Mini Grenade Launcher Last Messages --------------- 04042_ Destroyed Lgt. Treads. 04042_ as-23041 destroyed. 04044_ The unstable cave ceiling collapses. 04048_ as-02887 destroyed. 04048_ R-06 Scavenger destroyed. 04050_ as-71277 destroyed. 04051_ The unstable cave ceiling collapses. 04051_ as-73541 destroyed. 04051_ as-58155 destroyed. [Achievement: Exterminator] 04054_ The unstable cave ceiling collapses. 04055_ Missile Launcher destroyed. 04056_ The unstable cave ceiling collapses. 04057_ Lgt. Treads destroyed. 04058_ The unstable cave ceiling collapses. 04059_ Missile Launcher destroyed. 04060_ The unstable cave ceiling collapses. 04063_ Flight Unit destroyed. 04064_ Identified Imp. Assault Rifle. 04065_ The unstable cave ceiling collapses. Map ----- +----------------------------------------------------+ | | | | | | | | | | | | | | | | | | | | | | | | | | | | | | | | | | | | | | | | | | | ???????????????#### # ##??? | | ???????????????# ## ##?? | | ?????????????### #?? | | ?????????????# # #?? | | ????????????# @ #?? | | ????????? # #?? | | ???????????# #?? | | ??????????? #?? | | ??????????? d! # # #?? | | ???????????? = # ###?? | | ????????????% % d #?###???? | | ????????????$ ##????????? | | ?????????????# ??????????? | | ?????????????## ???????????? | | ??????????????## ???????????? | | ???????????????# ????????????? | | ????????????????# ????????????? | | ?????????????????? ?????????????? | | ????????????????????????????????? | | ????????????????????????????????? | | ????????????????????????????????? | | ????????????????????????????????? | | ????????????????????????????????? | | ????????????????????????????????? | | ????????????????????????????????? | | ????????????????????????????????? | | ????????????????????????????????? | | ????????????????????????????????? | | ????????????????????????????????? | +----------------------------------------------------+ Best States ------------- Heat Dissipation 28 Energy Generation 14 Energy Capacity 265 Matter Stores 300 Matter Capacity 300 Sight Range 16 Terrain Scan Density 10 Evasion (%) 40 Targeting Accuracy 6 Recoil Reduction 4 Item Schematics ----------------- None Robot Schematics ------------------ None Fabricated ------------ Nothing Alien Tech Used ----------------- None Achievements -------------- Exterminator Let's See Who's Tougher Challenges ------------ None Game ------ Seed RocketCooledStabilizer Manual? 0 Play Time 00:37:27 Cumulative 8.3 hours Start 2024.09.15 @ 15:36:07 End 2024.09.15 @ 16:17:57 Sessions 1 Manual Loads 0 Difficulty Rogue Special Mode None Game No. 13 Rogue 13 Adventurer 0 Explorer 0 Win Type - Total 0 Types 0/0/0/0/0/0/0/0/0 Lore% 8 Gallery% 7 Achievement% 13 Wizard Run 0 Options --------- Layout 1 ASCII 0 Keyboard 1 Movement Numpad Keybinds 0 Fullscreen 1 Font 24/Smallcaps Map View 50x35 Zoom Use 0% Tactical HUD 1 Map Filters NONE Filters NONE Steam 1 RUN: 6aea8efe-34ce-402b-b449-9c92fe411109